Workbook

Sheet 最终数据
A1: 附表2
A2: 贵州省2019年农村义务教育阶段学校教师特设岗位计划学科教师指标分配表（含硕师计划毕业生）
A3: 序号 | B3: 县名 | C3: 国家级“特岗计划”指标数小计 | D3: 学段 | E3: 国家级“特岗计划”教师申报数 | W3: 县级“特岗计划”指标数
E4: 小计 | F4: 语文 | G4: 数学 | H4: 英语 | I4: 物理 | J4: 化学 | K4: 生物 | L4: 地理 | M4: 历史 | N4: 政治 | O4: 音乐 | P4: 体育 | Q4: 美术 | R4: 信息技术 | S4: 科学 | T4: 心理健康 | U4: 其他 | V4: 硕师计划 | W4: 幼儿园
A5: 1 | B5: 云岩区 | C5: =SUM(E5:E6) -> 21 | D5: 初中 | E5: =SUM(F5:U5) -> 6 | G5: 2 | H5: 1 | P5: 3
D6: 小学 | E6: =SUM(F6:U6) -> 15 | F6: 7 | G6: 3 | H6: 3 | P6: 2
A7: 2 | B7: 观山湖区 | C7: =SUM(E7:E8) -> 10 | D7: 初中 | E7: 0
D8: 小学 | E8: 10 | F8: 5 | G8: 4 | S8: 1
A9: 3 | B9: 花溪区 | C9: =SUM(E9:E10) -> 19 | D9: 初中 | E9: 2 | J9: 1 | K9: 1
D10: 小学 | E10: 17 | F10: 4 | G10: 4 | N10: 3 | O10: 1 | P10: 1 | Q10: 4
A11: 4 | B11: 白云区 | C11: =SUM(E11:E12) -> 18 | D11: 初中 | E11: 0
D12: 小学 | E12: 18 | F12: 8 | G12: 6 | H12: 2 | P12: 2
A13: 5 | B13: 乌当区 | C13: =SUM(E13:E14) -> 40 | D13: 初中 | E13: 3 | G13: 1 | H13: 2
D14: 小学 | E14: 37 | F14: 11 | G14: 13 | H14: 6 | P14: 1 | Q14: 3 | R14: 3
A15: 6 | B15: 清镇市 | C15: =SUM(E15:E16) -> 20 | D15: 初中 | E15: 0
D16: 小学 | E16: 20 | G16: 20
A17: 7 | B17: 修文县 | C17: =SUM(E17:E18) -> 28 | D17: 初中 | E17: 0
D18: 小学 | E18: 28 | F18: 8 | G18: 5 | H18: 5 | O18: 3 | P18: 3 | Q18: 2 | R18: 1 | S18: 1
A19: 8 | B19: 开阳县 | C19: =SUM(E19:E20) -> 40 | D19: 初中 | E19: 5 | O19: 2 | P19: 1 | Q19: 2
D20: 小学 | E20: 35 | F20: 7 | G20: 4 | O20: 5 | P20: 5 | Q20: 3 | R20: 2 | S20: 4 | T20: 5
A21: 9 | B21: 息烽县 | C21: =SUM(E21:E22) -> 8 | D21: 初中 | E21: 6 | K21: 2 | M21: 2 | N21: 2
D22: 小学 | E22: 2 | H22: 2
A23: 贵阳市 | C23: =SUM(E23:E24) -> 204 | D23: 初中 | E23: =SUM(E5,E7,E9,E11,E13,E15,E17,E19,E21) -> 22 | F23: =SUM(F5,F7,F9,F11,F13,F15,F17,F19,F21) -> 0 | G23: 3 | H23: 3 | I23: 0 | J23: 1 | K23: 3 | L23: 0 | M23: 2 | N23: 2 | O23: 2 | P23: 4 | Q23: 2 | R23: 0 | S23: 0 | T23: 0 | U23: 0 | W23: =SUM(W5:W22) -> 0
D24: 小学 | E24: =SUM(E6,E8,E10,E12,E14,E16,E18,E20,E22) -> 182 | F24: =SUM(F6,F8,F10,F12,F14,F16,F18,F20,F22) -> 50 | G24: 59 | H24: 18 | I24: 0 | J24: 0 | K24: 0 | L24: 0 | M24: 0 | N24: 3 | O24: 9 | P24: 14 | Q24: 12 | R24: 6 | S24: 6 | T24: 5 | U24: 0
A25: 10 | B25: 六枝特区 | C25: =SUM(E25:E26) -> 50 | D25: 初中 | E25: =SUM(F25:U25) -> 20 | F25: 4 | G25: 1 | H25: 1 | I25: 1 | J25: 1 | L25: 1 | N25: 1 | O25: 3 | P25: 2 | Q25: 2 | R25: 3
D26: 小学 | E26: =SUM(F26:U26) -> 30 | F26: 6 | G26: 5 | H26: 3 | O26: 5 | P26: 4 | Q26: 6 | R26: 1
A27: 11 | B27: 盘州市 | C27: =SUM(E27:E28) -> 180 | D27: 初中 | E27: 0 | W27: 60
D28: 小学 | E28: 180 | F28: 31 | G28: 21 | H28: 32 | O28: 38 | P28: 19 | Q28: 21 | R28: 14 | S28: 2 | T28: 2
A29: 12 | B29: 水城县 | C29: =SUM(E29:E30) -> 200 | D29: 初中 | E29: 80 | F29: 13 | G29: 14 | H29: 15 | I29: 7 | J29: 8 | K29: 2 | L29: 3 | M29: 4 | N29: 1 | O29: 3 | P29: 2 | Q29: 1 | R29: 2 | V29: 语文2、数学1、英语1、地理1 | W29: 150
D30: 小学 | E30: 120 | F30: 34 | G30: 30 | H30: 14 | O30: 6 | P30: 11 | Q30: 10 | R30: 6 | S30: 9
A31: 13 | B31: 钟山区 | C31: =SUM(E31:E32) -> 100 | D31: 初中 | E31: 50 | F31: 8 | G31: 8 | H31: 9 | I31: 5 | J31: 1 | M31: 1 | N31: 2 | O31: 6 | P31: 4 | Q31: 4 | R31: 2 | W31: 25
D32: 小学 | E32: 50 | F32: 7 | G32: 6 | H32: 9 | O32: 5 | P32: 5 | Q32: 5 | S32: 13
A33: 六盘水市 | C33: =SUM(E33:E34) -> 530 | D33: 初中 | E33: =SUM(E25,E27,E29,E31) -> 150 | F33: =SUM(F25,F27,F29,F31) -> 25 | G33: 23 | H33: 25 | I33: 13 | J33: 10 | K33: 2 | L33: 4 | M33: 5 | N33: 4 | O33: 12 | P33: 8 | Q33: 7 | R33: 7 | S33: 0 | T33: 0 | U33: 0 | V33: 5 | W33: =SUM(W25:W32) -> 235
D34: 小学 | E34: =SUM(E26,E28,E30,E32) -> 380 | F34: =SUM(F26,F28,F30,F32) -> 78 | G34: 62 | H34: 58 | I34: 0 | J34: 0 | K34: 0 | L34: 0 | M34: 0 | N34: 0 | O34: 54 | P34: 39 | Q34: 42 | R34: 21 | S34: 24 | T34: 2 | U34: 0
A35: 14 | B35: 汇川区 | C35: =SUM(E35:E36) -> 24 | D35: 初中 | E35: =SUM(F35:U35) -> 5 | F35: 3 | K35: 1 | L35: 1 | W35: 8（含精准扶贫1）
D36: 小学 | E36: =SUM(F36:U36) -> 19 | F36: 4 | G36: 5 | H36: 7 | O36: 1 | P36: 1 | Q36: 1
A37: 15 | B37: 正安县 | C37: =SUM(E37:E38) -> 50 | D37: 初中 | E37: 14 | F37: 2 | G37: 2 | H37: 4 | I37: 1 | K37: 1 | L37: 3 | V37: 数学1 | W37: 50（含精准扶贫8）
D38: 小学 | E38: 36 | F38: 12 | G38: 8 | H38: 5 | O38: 3 | P38: 1 | Q38: 3 | R38: 2 | U38: 2（特殊教育）
A39: 16 | B39: 新蒲新区 | C39: =SUM(E39:E40) -> 60 | D39: 初中 | E39: 14 | K39: 3 | L39: 2 | M39: 4 | P39: 1 | Q39: 1 | T39: 3 | W39: 15
D40: 小学 | E40: 46 | F40: 9 | G40: 7 | H40: 7 | O40: 9 | P40: 5 | Q40: 6 | R40: 2 | T40: 1
A41: 17 | B41: 桐梓县 | C41: =SUM(E41:E42) -> 60 | D41: 初中 | E41: 5 | F41: 3 | H41: 2 | W41: 20（含精准扶贫2）
D42: 小学 | E42: 55 | F42: 26 | G42: 19 | H42: 8 | O42: 1 | S42: 1
A43: 18 | B43: 余庆县 | C43: =SUM(E43:E44) -> 22 | D43: 初中 | E43: 8 | F43: 1 | G43: 4 | H43: 2 | I43: 1 | W43: 8(含精准扶贫1）
D44: 小学 | E44: 14 | F44: 3 | H44: 6 | P44: 2 | Q44: 1 | S44: 2
A45: 19 | B45: 红花岗区 | C45: =SUM(E45:E46) -> 35 | D45: 初中 | E45: 11 | G45: 1 | I45: 1 | L45: 2 | M45: 2 | N45: 1 | O45: 1 | P45: 2 | R45: 1 | W45: 9（含精准扶贫1）
D46: 小学 | E46: 24 | F46: 7 | G46: 10 | H46: 2 | O46: 3 | Q46: 1 | S46: 1
A47: 20 | B47: 道真县 | C47: =SUM(E47:E48) -> 130 | D47: 初中 | E47: 26 | H47: 3 | I47: 2 | J47: 2 | K47: 3 | L47: 2 | M47: 2 | N47: 4 | O47: 3 | R47: 2 | T47: 2 | U47: 1（精准扶贫） | W47: 20（含精准扶贫1）
D48: 小学 | E48: 104 | F48: 30 | G48: 30 | H48: 16 | O48: 6 | P48: 8 | Q48: 6 | R48: 3 | S48: 4 | U48: 1（精准扶贫）
A49: 21 | B49: 凤冈县 | C49: =SUM(E49:E50) -> 48 | D49: 初中 | E49: 0 | W49: 12（含精准扶贫2）
D50: 小学 | E50: 48 | F50: 4 | G50: 4 | H50: 4 | O50: 12 | P50: 6 | Q50: 12 | S50: 2 | U50: 4（精准扶贫）
A51: 22 | B51: 绥阳 | C51: =SUM(E51:E52) -> 72 | D51: 初中 | E51: 12 | H51: 2 | J51: 1 | K51: 1 | L51: 2 | M51: 2 | N51: 1 | P51: 1 | Q51: 2 | W51: 20
D52: 小学 | E52: 60 | F52: 2 | G52: 5 | H52: 14 | O52: 7 | P52: 9 | Q52: 7 | R52: 2 | S52: 13 | T52: 1
A53: 23 | B53: 赤水市 | C53: =SUM(E53:E54) -> 68 | D53: 初中 | E53: 7 | F53: 2 | G53: 2 | I53: 1 | L53: 1 | N53: 1 | W53: 17（含精准扶贫2）
D54: 小学 | E54: 61 | F54: 25 | G54: 14 | H54: 7 | O54: 2 | P54: 2 | Q54: 5 | R54: 1 | S54: 4 | T54: 1
A55: 24 | B55: 湄潭县 | C55: =SUM(E55:E56) -> 30 | D55: 初中 | E55: 0 | W55: 20（含精准扶贫2）
D56: 小学 | E56: 30 | F56: 7 | G56: 5 | H56: 4 | O56: 3 | P56: 3 | Q56: 3 | R56: 3 | S56: 2
A57: 25 | B57: 播州区 | C57: =SUM(E57:E58) -> 100 | D57: 初中 | E57: 10 | F57: 2 | G57: 1 | H57: 1 | J57: 3 | K57: 1 | Q57: 2 | W57: 20(含精准扶贫2)
D58: 小学 | E58: 90 | F58: 23 | G58: 21 | H58: 5 | O58: 12 | P58: 6 | Q58: 7 | R58: 3 | S58: 9 | U58: 4（精准扶贫）
A59: 26 | B59: 务川县 | C59: =SUM(E59:E60) -> 40 | D59: 初中 | E59: 25 | F59: 1 | G59: 4 | H59: 6 | I59: 2 | J59: 1 | K59: 1 | L59: 2 | M59: 1 | N59: 1 | P59: 1 | T59: 1 | U59: 3（精准扶贫） | V59: 语文1 | W59: 10
D60: 小学 | E60: 15 | F60: 2 | G60: 4 | H60: 9
A61: 27 | B61: 习水县 | C61: =SUM(E61:E62) -> 95 | D61: 初中 | E61: 11 | G61: 0 | H61: 3 | I61: 2 | J61: 1 | M61: 1 | O61: 1 | V61: 英语2、数学1 | W61: 30
D62: 小学 | E62: 84 | F62: 25 | G62: 23 | H62: 5 | O62: 12 | P62: 4 | Q62: 7 | R62: 4 | S62: 4
A63: 遵义市 | C63: =SUM(E63:E64) -> 834 | D63: 初中 | E63: =SUM(E35,E37,E39,E41,E43,E45,E47,E49,E51,E53,E55,E57,E59,E61) -> 148 | F63: =SUM(F35,F37,F39,F41,F43,F45,F47,F49,F51,F53,F55,F57,F59,F61) -> 14 | G63: 14 | H63: 23 | I63: 10 | J63: 8 | K63: 11 | L63: 15 | M63: 12 | N63: 8 | O63: 5 | P63: 5 | Q63: 5 | R63: 3 | S63: 0 | T63: 6 | U63: 4 | V63: 5 | W63: 259
D64: 小学 | E64: =SUM(E36,E38,E40,E42,E44,E46,E48,E50,E52,E54,E56,E58,E60,E62) -> 686 | F64: =SUM(F36,F38,F40,F42,F44,F46,F48,F50,F52,F54,F56,F58,F60,F62) -> 179 | G64: 155 | H64: 99 | I64: 0 | J64: 0 | K64: 0 | L64: 0 | M64: 0 | N64: 0 | O64: 71 | P64: 47 | Q64: 59 | R64: 20 | S64: 42 | T64: 3 | U64: 11
A65: 28 | B65: 仁怀市 | C65: =SUM(E65:E66) -> 80 | D65: 初中 | W65: 20
D66: 小学 | E66: =SUM(F66:U66) -> 80 | F66: 30 | G66: 24 | H66: 16 | O66: 4 | P66: 3 | Q66: 3
A67: 29 | B67: 西秀区 | C67: =SUM(E67:E68) -> 70 | D67: 初中 | E67: =SUM(F67:U67) -> 24 | F67: 5 | G67: 4 | H67: 6 | K67: 1 | L67: 2 | N67: 2 | Q67: 1 | R67: 2 | T67: 1
D68: 小学 | E68: =SUM(F68:U68) -> 46 | F68: 16 | G68: 11 | H68: 8 | O68: 4 | P68: 5 | Q68: 2
A69: 30 | B69: 平坝区 | C69: =SUM(E69:E70) -> 38 | D69: 初中 | E69: 3 | G69: 1 | K69: 1 | R69: 1 | W69: 2
D70: 小学 | E70: 35 | F70: 15 | G70: 8 | H70: 3 | O70: 5 | P70: 1 | Q70: 1 | R70: 2
A71: 31 | B71: 普定县 | C71: =SUM(E71:E72) -> 120 | D71: 初中 | E71: 50 | F71: 6 | G71: 8 | H71: 8 | I71: 4 | J71: 3 | K71: 3 | L71: 3 | M71: 4 | N71: 3 | U71: 4（特殊教育） | V71: 语文2、生物1、物理1 | W71: 30
D72: 小学 | E72: 70 | F72: 14 | G72: 10 | H72: 6 | O72: 8 | P72: 15 | Q72: 8 | R72: 5 | S72: 2 | T72: 2
A73: 32 | B73: 镇宁县 | C73: =SUM(E73:E74) -> 50 | D73: 初中 | E73: 3 | J73: 2 | T73: 1 | W73: 30
D74: 小学 | E74: 47 | F74: 14 | G74: 15 | H74: 1 | O74: 5 | P74: 6 | Q74: 6
A75: 33 | B75: 关岭县 | C75: =SUM(E75:E76) -> 120 | D75: 初中 | E75: 36 | F75: 6 | G75: 6 | H75: 8 | I75: 5 | K75: 1 | M75: 2 | N75: 2 | O75: 1 | P75: 3 | Q75: 1 | V75: 生物1 | W75: 10
D76: 小学 | E76: 84 | F76: 28 | G76: 20 | H76: 16 | O76: 6 | P76: 2 | Q76: 2 | R76: 3 | S76: 7
A77: 34 | B77: 紫云县 | C77: =SUM(E77:E78) -> 80 | D77: 初中 | E77: 20 | F77: 6 | G77: 6 | H77: 6 | T77: 2 | W77: 30
D78: 小学 | E78: 60 | F78: 18 | G78: 18 | H78: 8 | O78: 3 | P78: 3 | R78: 2 | S78: 5 | U78: 3（特殊教育）
A79: 35 | B79: 开发区 | C79: =SUM(E79:E80) -> 30 | D79: 初中 | E79: 10 | F79: 1 | G79: 1 | H79: 1 | I79: 2 | J79: 1 | K79: 1 | M79: 1 | P79: 2
D80: 小学 | E80: 20 | F80: 4 | G80: 5 | H80: 3 | O80: 3 | P80: 2 | Q80: 1 | S80: 2
A81: 36 | B81: 黄果树旅游管理区 | C81: =SUM(E81:E82) -> 10 | D81: 初中 | E81: 3 | F81: 1 | H81: 1 | I81: 1
D82: 小学 | E82: 7 | F82: 2 | G82: 3 | H82: 1 | O82: 1
A83: 安顺市 | C83: =SUM(E83:E84) -> 518 | D83: 初中 | E83: =SUM(E67,E69,E71,E73,E75,E77,E79,E81) -> 149 | F83: =SUM(F67,F69,F71,F73,F75,F77,F79,F81) -> 25 | G83: 26 | H83: 30 | I83: 12 | J83: 6 | K83: 7 | L83: 5 | M83: 7 | N83: 7 | O83: 1 | P83: 5 | Q83: 2 | R83: 3 | S83: 0 | T83: 4 | U83: 4 | V83: 5 | W83: =SUM(W67:W82) -> 102
D84: 小学 | E84: =SUM(E68,E70,E72,E74,E76,E78,E80,E82) -> 369 | F84: =SUM(F68,F70,F72,F74,F76,F78,F80,F82) -> 111 | G84: 90 | H84: 46 | I84: 0 | J84: 0 | K84: 0 | L84: 0 | M84: 0 | N84: 0 | O84: 35 | P84: 34 | Q84: 20 | R84: 12 | S84: 16 | T84: 2 | U84: 3
A85: 37 | B85: 都匀市 | C85: =SUM(E85:E86) -> 55 | D85: 初中 | E85: =SUM(F85:U85) -> 0 | W85: 13
D86: 小学 | E86: =SUM(F86:U86) -> 55 | G86: 2 | H86: 20 | N86: 3 | O86: 7 | P86: 8 | Q86: 5 | R86: 4 | S86: 5 | T86: 1
A87: 38 | B87: 福泉市 | C87: =SUM(E87:E88) -> 24 | D87: 初中 | E87: 2 | H87: 1 | P87: 1 | W87: 6
D88: 小学 | E88: 22 | F88: 1 | G88: 1 | H88: 2 | O88: 7 | P88: 3 | Q88: 8
A89: 39 | B89: 独山县 | C89: =SUM(E89:E90) -> 16 | D89: 初中 | E89: 0 | W89: 4
D90: 小学 | E90: 16 | H90: 2 | P90: 5 | Q90: 3 | R90: 2 | S90: 2 | T90: 2
A91: 40 | B91: 贵定县 | C91: =SUM(E91:E92) -> 82 | D91: 初中 | E91: 0 | W91: 30
D92: 小学 | E92: 82 | F92: 15 | G92: 15 | H92: 7 | O92: 10 | P92: 5 | Q92: 10 | R92: 10 | S92: 10
A93: 41 | B93: 荔波县 | C93: =SUM(E93:E94) -> 20 | D93: 初中 | E93: 0 | W93: 5
D94: 小学 | E94: 20 | H94: 10 | O94: 3 | P94: 1 | Q94: 1 | R94: 1 | S94: 3 | T94: 1
A95: 42 | B95: 龙里县 | C95: =SUM(E95:E96) -> 34 | D95: 初中 | E95: 16 | F95: 2 | G95: 4 | H95: 4 | J95: 1 | K95: 1 | L95: 1 | M95: 1 | O95: 1 | Q95: 1 | W95: 8
D96: 小学 | E96: 18 | F96: 6 | G96: 8 | H96: 4
A97: 43 | B97: 罗甸县 | C97: =SUM(E97:E98) -> 200 | D97: 初中 | E97: 76 | F97: 11 | G97: 11 | H97: 11 | I97: 6 | J97: 5 | K97: 4 | L97: 6 | M97: 6 | N97: 6 | O97: 3 | Q97: 2 | R97: 3 | T97: 2 | W97: 50
D98: 小学 | E98: 124 | F98: 25 | G98: 26 | H98: 26 | O98: 12 | P98: 12 | Q98: 13 | R98: 2 | S98: 6 | T98: 2
A99: 44 | B99: 平塘县 | C99: =SUM(E99:E100) -> 40 | D99: 初中 | E99: 20 | F99: 3 | G99: 5 | H99: 2 | I99: 2 | K99: 1 | L99: 1 | M99: 1 | O99: 2 | P99: 1 | Q99: 2 | W99: 10
D100: 小学 | E100: 20 | F100: 11 | G100: 3 | H100: 2 | O100: 2 | P100: 1 | R100: 1
A101: 45 | B101: 三都县 | C101: =SUM(E101:E102) -> 88 | D101: 初中 | E101: 27 | G101: 4 | H101: 6 | I101: 2 | J101: 3 | K101: 3 | L101: 4 | N101: 2 | O101: 2 | Q101: 1 | W101: 12
D102: 小学 | E102: 61 | F102: 5 | G102: 12 | H102: 14 | O102: 10 | P102: 7 | Q102: 7 | R102: 6
A103: 46 | B103: 瓮安县 | C103: =SUM(E103:E104) -> 40 | D103: 初中 | E103: 0 | W103: 10
D104: 小学 | E104: 40 | F104: 12 | G104: 10 | H104: 9 | O104: 3 | P104: 2 | R104: 1 | S104: 3
A105: 47 | B105: 长顺县 | C105: =SUM(E105:E106) -> 30 | D105: 初中 | E105: 0 | W105: 8
D106: 小学 | E106: 30 | F106: 8 | G106: 4 | H106: 12 | O106: 2 | P106: 2 | Q106: 2
A107: 48 | B107: 惠水县 | C107: =SUM(E107:E108) -> 91 | D107: 初中 | E107: 29 | F107: 2 | G107: 3 | H107: 2 | I107: 2 | J107: 1 | K107: 1 | L107: 2 | M107: 2 | N107: 2 | O107: 2 | P107: 2 | Q107: 2 | R107: 3 | T107: 3 | W107: 23
D108: 小学 | E108: 62 | F108: 12 | G108: 14 | H108: 13 | N108: 2 | O108: 3 | P108: 4 | Q108: 3 | R108: 3 | S108: 5 | T108: 3
A109: 黔南州 | C109: =SUM(E109:E110) -> 720 | D109: 初中 | E109: =SUM(E85,E87,E89,E91,E93,E95,E97,E99,E101,E103,E105,E107) -> 170 | F109: =SUM(F85,F87,F89,F91,F93,F95,F97,F99,F101,F103,F105,F107) -> 18 | G109: 27 | H109: 26 | I109: 12 | J109: 10 | K109: 10 | L109: 14 | M109: 10 | N109: 10 | O109: 10 | P109: 4 | Q109: 8 | R109: 6 | S109: 0 | T109: 5 | U109: 0 | W109: =SUM(W85:W107) -> 179
D110: 小学 | E110: =SUM(E86,E88,E90,E92,E94,E96,E98,E100,E102,E104,E106,E108) -> 550 | F110: =SUM(F86,F88,F90,F92,F94,F96,F98,F100,F102,F104,F106,F108) -> 95 | G110: 95 | H110: 121 | I110: 0 | J110: 0 | K110: 0 | L110: 0 | M110: 0 | N110: 5 | O110: 59 | P110: 50 | Q110: 52 | R110: 30 | S110: 34 | T110: 9 | U110: 0
A111: 49 | B111: 麻江县 | C111: =SUM(E111:E112) -> 16 | D111: 初中 | E111: =SUM(F111:U111) -> 5 | O111: 2 | P111: 2 | Q111: 1 | W111: 18
D112: 小学 | E112: =SUM(F112:U112) -> 11 | O112: 3 | P112: 5 | Q112: 3
A113: 50 | B113: 黄平县 | C113: =SUM(E113:E114) -> 80 | D113: 初中 | E113: 10 | F113: 2 | G113: 2 | H113: 1 | K113: 1 | L113: 1 | M113: 1 | P113: 1 | T113: 1 | W113: 40
D114: 小学 | E114: 70 | F114: 15 | G114: 15 | H114: 15 | N114: 4 | O114: 3 | P114: 3 | Q114: 3 | R114: 4 | S114: 5 | T114: 3
A115: 51 | B115: 镇远县 | C115: =SUM(E115:E116) -> 60 | D115: 初中 | E115: 18 | F115: 2 | G115: 2 | H115: 2 | I115: 1 | K115: 2 | L115: 1 | M115: 2 | N115: 2 | P115: 2 | R115: 2
D116: 小学 | E116: 42 | F116: 21 | G116: 15 | H116: 4 | O116: 1 | P116: 1
A117: 52 | B117: 岑巩县 | C117: =SUM(E117:E118) -> 0 | D117: 初中 | E117: 0 | W117: 20
D118: 小学 | E118: 0
A119: 53 | B119: 三穗县 | C119: =SUM(E119:E120) -> 45 | D119: 初中 | E119: 2 | K119: 1 | L119: 1 | W119: 5
D120: 小学 | E120: 43 | F120: 11 | G120: 11 | H120: 11 | P120: 3 | Q120: 3 | R120: 2 | U120: 2（舞蹈）
A121: 54 | B121: 天柱县 | C121: =SUM(E121:E122) -> 70 | D121: 初中 | E121: 10 | G121: 2 | H121: 3 | I121: 0 | J121: 2 | P121: 1 | V121: 物理1、数学1
D122: 小学 | E122: 60 | F122: 24 | G122: 18 | H122: 14 | O122: 1 | P122: 2 | Q122: 1
A123: 55 | B123: 锦屏县 | C123: =SUM(E123:E124) -> 48 | D123: 初中 | E123: 10 | H123: 1 | K123: 1 | M123: 1 | O123: 3 | P123: 1 | Q123: 1 | T123: 2 | W123: 12
D124: 小学 | E124: 38 | F124: 7 | G124: 6 | H124: 4 | N124: 1 | O124: 6 | P124: 5 | Q124: 4 | R124: 2 | S124: 2 | T124: 1
A125: 56 | B125: 黎平县 | C125: =SUM(E125:E126) -> 50 | D125: 初中 | E125: 0 | W125: 10
D126: 小学 | E126: 50 | F126: 15 | G126: 14 | H126: 9 | N126: 2 | O126: 1 | P126: 6 | S126: 3
A127: 57 | B127: 从江县 | C127: =SUM(E127:E128) -> 21 | D127: 初中 | E127: 5 | G127: 1 | H127: 2 | I127: 1 | O127: 1 | W127: 3
D128: 小学 | E128: 16 | F128: 2 | H128: 6 | O128: 3 | P128: 3 | Q128: 2
A129: 58 | B129: 榕江县 | C129: =SUM(E129:E130) -> 30 | D129: 初中 | E129: 0 | W129: 0
D130: 小学 | E130: 30 | F130: 9 | G130: 6 | H130: 5 | O130: 3 | P130: 2 | Q130: 1 | R130: 2 | S130: 2
A131: 59 | B131: 剑河县 | C131: =SUM(E131:E132) -> 40 | D131: 初中 | E131: 1 | O131: 1 | W131: 0
D132: 小学 | E132: 39 | F132: 8 | G132: 3 | H132: 3 | O132: 8 | P132: 4 | Q132: 6 | R132: 7
A133: 60 | B133: 丹寨县 | C133: =SUM(E133:E134) -> 25 | D133: 初中 | E133: 10 | F133: 3 | G133: 3 | H133: 3 | N133: 1 | W133: 5
D134: 小学 | E134: 15 | F134: 3 | H134: 4 | O134: 4 | P134: 4
A135: 黔东南州 | C135: =SUM(E135:E136) -> 485 | D135: 初中 | E135: =SUM(E111,E113,E115,E117,E119,E121,E123,E125,E127,E129,E131,E133) -> 71 | F135: =SUM(F111,F113,F115,F117,F119,F121,F123,F125,F127,F129,F131,F133) -> 7 | G135: 10 | H135: 12 | I135: 2 | J135: 2 | K135: 5 | L135: 3 | M135: 4 | N135: 3 | O135: 7 | P135: 7 | Q135: 2 | R135: 2 | S135: 0 | T135: 3 | V135: 2 | W135: =SUM(W111:W134) -> 113
D136: 小学 | E136: =SUM(E112,E114,E116,E118,E120,E122,E124,E126,E128,E130,E132,E134) -> 414 | F136: =SUM(F112,F114,F116,F118,F120,F122,F124,F126,F128,F130,F132,F134) -> 115 | G136: 88 | H136: 75 | I136: 0 | J136: 0 | K136: 0 | L136: 0 | M136: 0 | N136: 7 | O136: 33 | P136: 38 | Q136: 23 | R136: 17 | S136: 12 | T136: 4 | U136: 2
A137: 61 | B137: 七星关区 | C137: =SUM(E137:E138) -> 280 | D137: 初中 | E137: =SUM(F137:U137) -> 160 | F137: 22 | G137: 13 | H137: 18 | I137: 9 | J137: 8 | K137: 7 | L137: 6 | M137: 5 | N137: 6 | O137: 17 | P137: 19 | Q137: 18 | R137: 9 | T137: 3 | W137: 70
D138: 小学 | E138: =SUM(F138:U138) -> 120 | F138: 26 | G138: 20 | H138: 9 | O138: 20 | P138: 9 | Q138: 23 | R138: 9 | S138: 3 | T138: 1
A139: 62 | B139: 大方县 | C139: =SUM(E139:E140) -> 120 | D139: 初中 | E139: 10 | F139: 2 | G139: 1 | H139: 4 | I139: 0 | O139: 1 | P139: 1 | V139: 物理1 | W139: 30
D140: 小学 | E140: 110 | F140: 9 | G140: 9 | H140: 20 | O140: 17 | P140: 21 | Q140: 19 | R140: 11 | T140: 1 | U140: 3（舞蹈）
A141: 63 | B141: 黔西县 | C141: =SUM(E141:E142) -> 70 | D141: 初中 | E141: 0 | W141: 40
D142: 小学 | E142: 70 | F142: 20 | G142: 20 | H142: 5 | O142: 8 | P142: 8 | Q142: 8 | R142: 1
A143: 64 | B143: 金沙县 | C143: =SUM(E143:E144) -> 200 | D143: 初中 | E143: 60 | F143: 9 | G143: 11 | H143: 13 | I143: 6 | J143: 5 | K143: 3 | L143: 3 | M143: 4 | N143: 3 | P143: 3 | W143: 50
D144: 小学 | E144: 140 | F144: 60 | G144: 27 | H144: 19 | O144: 15 | P144: 7 | Q144: 6 | R144: 4 | S144: 2
A145: 65 | B145: 织金县 | C145: =SUM(E145:E146) -> 150 | D145: 初中 | E145: 70 | F145: 10 | G145: 10 | H145: 15 | I145: 2 | J145: 3 | K145: 1 | L145: 2 | M145: 1 | N145: 1 | O145: 10 | P145: 5 | Q145: 6 | V145: 地理1、生物2、物理1 | W145: 50
D146: 小学 | E146: 80 | F146: 26 | G146: 22 | H146: 5 | O146: 6 | P146: 5 | Q146: 6 | R146: 5 | S146: 5
A147: 66 | B147: 威宁县 | C147: =SUM(E147:E148) -> 400 | D147: 初中 | E147: 150 | F147: 25 | G147: 20 | H147: 35 | I147: 20 | J147: 3 | K147: 3 | L147: 3 | M147: 3 | N147: 3 | O147: 8 | P147: 12 | Q147: 10 | R147: 5 | W147: 200
D148: 小学 | E148: 250 | F148: 35 | G148: 35 | H148: 35 | O148: 40 | P148: 40 | Q148: 35 | R148: 20 | S148: 10
A149: 67 | B149: 赫章县 | C149: =SUM(E149:E150) -> 200 | D149: 初中 | E149: 66 | F149: 7 | G149: 11 | H149: 10 | I149: 7 | J149: 4 | K149: 7 | L149: 5 | M149: 1 | N149: 2 | O149: 1 | P149: 5 | Q149: 2 | R149: 4 | W149: 50
D150: 小学 | E150: 134 | F150: 26 | G150: 28 | H150: 32 | O150: 17 | P150: 8 | Q150: 7 | R150: 7 | S150: 6 | T150: 2 | U150: 1（舞蹈）
A151: 毕节市 | C151: =SUM(E151:E152) -> 1420 | D151: 初中 | E151: =SUM(E137,E139,E141,E143,E145,E147,E149) -> 516 | F151: =SUM(F137,F139,F141,F143,F145,F147,F149) -> 75 | G151: 66 | H151: 95 | I151: 44 | J151: 23 | K151: 21 | L151: 19 | M151: 14 | N151: 15 | O151: 37 | P151: 45 | Q151: 36 | R151: 18 | S151: 0 | T151: 3 | U151: 0 | V151: 5 | W151: =SUM(W137:W150) -> 490
D152: 小学 | E152: =SUM(E138,E140,E142,E144,E146,E148,E150) -> 904 | F152: =SUM(F138,F140,F142,F144,F146,F148,F150) -> 202 | G152: 161 | H152: 125 | I152: 0 | J152: 0 | K152: 0 | L152: 0 | M152: 0 | N152: 0 | O152: 123 | P152: 98 | Q152: 104 | R152: 57 | S152: 26 | T152: 4 | U152: 4
A153: 68 | B153: 碧江区 | C153: =SUM(E153:E154) -> 98 | D153: 初中 | E153: =SUM(F153:U153) -> 44 | F153: 9 | G153: 9 | H153: 7 | I153: 2 | J153: 1 | K153: 2 | L153: 1 | M153: 2 | N153: 2 | O153: 2 | P153: 3 | Q153: 1 | R153: 3 | W153: 12
D154: 小学 | E154: =SUM(F154:U154) -> 54 | F154: 14 | G154: 11 | H154: 7 | O154: 4 | P154: 5 | Q154: 4 | R154: 4 | S154: 5
A155: 69 | B155: 松桃县 | C155: =SUM(E155:E156) -> 100 | D155: 初中 | E155: 40 | F155: 6 | G155: 8 | H155: 5 | I155: 4 | J155: 1 | K155: 1 | L155: 1 | M155: 1 | N155: 1 | O155: 6 | P155: 2 | Q155: 2 | R155: 2 | W155: 50
D156: 小学 | E156: 60 | F156: 9 | G156: 10 | H156: 7 | O156: 11 | P156: 12 | Q156: 8 | R156: 3
A157: 70 | B157: 玉屏县 | C157: =SUM(E157:E158) -> 118 | D157: 初中 | E157: 28 | F157: 6 | G157: 4 | H157: 4 | I157: 1 | K157: 1 | L157: 2 | M157: 3 | N157: 2 | P157: 4 | Q157: 1 | W157: 10
D158: 小学 | E158: 90 | F158: 44 | G158: 28 | H158: 6 | R158: 2 | S158: 6 | T158: 3 | U158: 1（舞蹈）
A159: 71 | B159: 江口县 | C159: =SUM(E159:E160) -> 32 | D159: 初中 | E159: 5 | F159: 1 | G159: 1 | I159: 1 | L159: 1 | M159: 1 | W159: 8
D160: 小学 | E160: 27 | F160: 8 | G160: 6 | H160: 2 | N160: 1 | O160: 3 | P160: 3 | Q160: 2 | R160: 1 | S160: 1
A161: 72 | B161: 石阡县 | C161: =SUM(E161:E162) -> 56 | D161: 初中 | E161: 16 | F161: 2 | G161: 1 | H161: 3 | I161: 1 | J161: 1 | K161: 1 | L161: 1 | M161: 1 | N161: 1 | O161: 1 | P161: 1 | T161: 1 | V161: 数学1 | W161: 14
D162: 小学 | E162: 40 | F162: 10 | G162: 10 | H162: 7 | N162: 1 | O162: 2 | P162: 2 | Q162: 2 | R162: 1 | S162: 2 | T162: 1 | U162: 2（舞蹈）
A163: 73 | B163: 印江县 | C163: =SUM(E163:E164) -> 48 | D163: 初中 | E163: 20 | F163: 3 | G163: 4 | H163: 4 | I163: 3 | J163: 4 | K163: 1 | L163: 1 | W163: 12
D164: 小学 | E164: 28 | F164: 11 | G164: 6 | H164: 4 | O164: 1 | P164: 2 | Q164: 2 | R164: 1 | S164: 1
A165: 74 | B165: 思南县 | C165: =SUM(E165:E166) -> 100 | D165: 初中 | E165: 50 | F165: 10 | G165: 6 | H165: 6 | I165: 4 | J165: 2 | K165: 2 | L165: 3 | M165: 3 | N165: 3 | O165: 2 | P165: 5 | R165: 2 | V165: 英语2 | W165: 50
D166: 小学 | E166: 50 | F166: 10 | G166: 10 | H166: 8 | N166: 3 | O166: 5 | P166: 5 | Q166: 2 | S166: 5 | T166: 2
A167: 75 | B167: 德江县 | C167: =SUM(E167:E168) -> 40 | D167: 初中 | E167: 22 | F167: 5 | G167: 4 | H167: 1 | I167: 2 | L167: 1 | N167: 2 | O167: 1 | P167: 2 | R167: 2 | T167: 1 | V167: 地理1 | W167: 10
D168: 小学 | E168: 18 | F168: 3 | G168: 2 | H168: 7 | O168: 2 | P168: 1 | Q168: 1 | R168: 1 | S168: 1
A169: 76 | B169: 沿河县 | C169: =SUM(E169:E170) -> 240 | D169: 初中 | E169: 140 | F169: 20 | G169: 25 | H169: 25 | I169: 5 | J169: 5 | K169: 5 | L169: 5 | M169: 5 | N169: 5 | O169: 5 | P169: 10 | Q169: 10 | R169: 5 | S169: 5 | T169: 5 | W169: 60
D170: 小学 | E170: 100 | F170: 20 | G170: 20 | H170: 20 | O170: 10 | P170: 10 | Q170: 10 | R170: 5 | S170: 2 | T170: 3
A171: 铜仁市 | C171: =SUM(E171:E172) -> 832 | D171: 初中 | E171: =SUM(E153,E155,E157,E159,E161,E163,E165,E167,E169) -> 365 | F171: =SUM(F153,F155,F157,F159,F161,F163,F165,F167,F169) -> 62 | G171: 62 | H171: 55 | I171: 23 | J171: 14 | K171: 13 | L171: 16 | M171: 16 | N171: 16 | O171: 17 | P171: 27 | Q171: 14 | R171: 14 | S171: 5 | T171: 7 | U171: 0 | V171: 4 | W171: =SUM(W153:W170) -> 226
D172: 小学 | E172: =SUM(E154,E156,E158,E160,E162,E164,E166,E168,E170) -> 467 | F172: =SUM(F154,F156,F158,F160,F162,F164,F166,F168,F170) -> 129 | G172: 103 | H172: 68 | I172: 0 | J172: 0 | K172: 0 | L172: 0 | M172: 0 | N172: 5 | O172: 38 | P172: 40 | Q172: 31 | R172: 18 | S172: 23 | T172: 9 | U172: 3
A173: 77 | B173: 兴仁市 | C173: =SUM(E173:E174) -> 60 | D173: 初中 | E173: 60 | F173: 13 | G173: 14 | H173: 13 | I173: 8 | J173: 5 | K173: 3 | V173: 语文1、生物2、英语1 | W173: 20
D174: 小学 | E174: =SUM(F174:U174) -> 0
A175: 78 | B175: 安龙县 | C175: =SUM(E175:E176) -> 40 | D175: 初中 | E175: 20 | F175: 1 | G175: 2 | H175: 7 | I175: 1 | J175: 2 | L175: 2 | M175: 4 | N175: 1 | W175: 5
D176: 小学 | E176: 20 | F176: 1 | G176: 1 | H176: 7 | O176: 4 | P176: 3 | Q176: 2 | R176: 2
A177: 79 | B177: 贞丰县 | C177: =SUM(E177:E178) -> 40 | D177: 初中 | E177: 22 | F177: 4 | G177: 2 | H177: 8 | I177: 3 | M177: 1 | N177: 1 | O177: 2 | R177: 1 | W177: 30
D178: 小学 | E178: 18 | F178: 1 | H178: 6 | O178: 8 | P178: 3
A179: 80 | B179: 册亨县 | C179: =SUM(E179:E180) -> 6 | D179: 初中 | E179: 0 | W179: 4
D180: 小学 | E180: 6 | F180: 1 | G180: 2 | H180: 3
A181: 81 | B181: 普安县 | C181: =SUM(E181:E182) -> 15 | D181: 初中 | E181: 5 | H181: 1 | L181: 1 | Q181: 1 | T181: 1 | U181: 1(舞蹈) | W181: 40
D182: 小学 | E182: 10 | O182: 2 | P182: 2 | Q182: 2 | S182: 2 | T182: 2
A183: 82 | B183: 晴隆县 | C183: =SUM(E183:E184) -> 128 | D183: 初中 | E183: 40 | F183: 8 | G183: 4 | H183: 12 | J183: 3 | L183: 1 | M183: 3 | N183: 4 | O183: 2 | P183: 1 | Q183: 1 | R183: 1 | W183: 32
D184: 小学 | E184: 88 | F184: 33 | G184: 21 | H184: 18 | O184: 9 | P184: 3 | Q184: 4
A185: 83 | B185: 望谟县 | C185: =SUM(E185:E186) -> 50 | D185: 初中 | E185: 40 | F185: 8 | G185: 6 | H185: 4 | I185: 5 | L185: 2 | M185: 6 | N185: 2 | O185: 2 | P185: 3 | R185: 2 | W185: 30
D186: 小学 | E186: 10 | H186: 10
A187: 84 | B187: 义龙试验区 | C187: =SUM(E187:E188) -> 40 | D187: 初中 | E187: 5 | F187: 2 | G187: 1 | H187: 1 | L187: 1 | W187: 10
D188: 小学 | E188: 35 | F188: 10 | G188: 8 | H188: 7 | O188: 2 | P188: 4 | Q188: 1 | R188: 1 | S188: 1 | T188: 1
A189: 黔西南州 | C189: =SUM(E189:E190) -> 379 | D189: 初中 | E189: =SUM(E173,E175,E177,E179,E181,E183,E185,E187) -> 192 | F189: =SUM(F173,F175,F177,F179,F181,F183,F185,F187) -> 36 | G189: 29 | H189: 46 | I189: 17 | J189: 10 | K189: 3 | L189: 7 | M189: 14 | N189: 8 | O189: 6 | P189: 4 | Q189: 2 | R189: 4 | S189: 0 | T189: 1 | U189: 1 | V189: 4 | W189: =SUM(W173:W188) -> 171
D190: 小学 | E190: =SUM(E174,E176,E178,E180,E182,E184,E186,E188) -> 187 | F190: =SUM(F174,F176,F178,F180,F182,F184,F186,F188) -> 46 | G190: 32 | H190: 51 | I190: 0 | J190: 0 | K190: 0 | L190: 0 | M190: 0 | N190: 0 | O190: 25 | P190: 15 | Q190: 9 | R190: 3 | S190: 3 | T190: 3 | U190: 0
A191: 85 | B191: 贵安新区 | C191: 10 | D191: 初中 | E191: =SUM(F191:U191) -> 3 | K191: 1 | P191: 2 | W191: 2
D192: 小学 | E192: =SUM(F192:U192) -> 7 | O192: 2 | P192: 2 | Q192: 2 | R192: 1
A193: 贵州省（7809） | C193: =SUM(E193:E194) -> 6012 | D193: 初中 | E193: =SUM(E23,E33,E63,E65,E83,E109,E135,E151,E171,E189,E191) -> 1786 | F193: =SUM(F23,F33,F63,F65,F83,F109,F135,F151,F171,F189,F191) -> 262 | G193: 260 | H193: 315 | I193: 133 | J193: 84 | K193: 76 | L193: 83 | M193: 84 | N193: 73 | O193: 97 | P193: 111 | Q193: 78 | R193: 57 | S193: 5 | T193: 29 | U193: 9 | V193: =SUM(V189,V171,V151,V135,V83,V63,V33) -> 30 | W193: 1797
D194: 小学 | E194: =SUM(E24,E34,E64,E66,E84,E110,E136,E152,E172,E190,E192) -> 4226 | F194: =SUM(F24,F34,F64,F66,F84,F110,F136,F152,F172,F190,F192) -> 1035 | G194: 869 | H194: 677 | I194: 0 | J194: 0 | K194: 0 | L194: 0 | M194: 0 | N194: 20 | O194: 453 | P194: 380 | Q194: 357 | R194: 185 | S194: 186 | T194: 41 | U194: 23
